[Event "Late-Titled-Tuesday-Blitz-April-23-2024"]
[Site "Chess.com"]
[Date "2024.04.23"]
[Round "7"]
[White "CarlosjPineror"]
[Black "sergoy"]
[Result "0-1"]
[WhiteElo "2773"]
[BlackElo "2943"]
[TimeControl "180+1"]
[EndTime "15:19:00 PDT"]
[Termination "sergoy won by resignation"]

1. e4 {[%clk 0:03:00.9]} 1... c5 {[%clk 0:03:00]} 2. Nf3 {[%clk 0:03:00.9]} 2...
d6 {[%clk 0:03:00.7]} 3. d4 {[%clk 0:03:01.5]} 3... cxd4 {[%clk 0:03:01.6]} 4.
Nxd4 {[%clk 0:03:02.1]} 4... Nf6 {[%clk 0:03:02.3]} 5. Nc3 {[%clk 0:03:02.8]}
5... a6 {[%clk 0:03:03.1]} 6. Bg5 {[%clk 0:03:03.1]} 6... Nbd7 {[%clk
0:03:01.9]} 7. Qe2 {[%clk 0:03:03.7]} 7... h6 {[%clk 0:03:01.3]} 8. Bh4 {[%clk
0:03:03.2]} 8... g6 {[%clk 0:03:01.7]} 9. O-O-O {[%clk 0:03:01.4]} 9... Qc7
{[%clk 0:03:00]} 10. f4 {[%clk 0:03:00.7]} 10... e5 {[%clk 0:02:59]} 11. fxe5
{[%clk 0:02:58.9]} 11... dxe5 {[%clk 0:02:58.5]} 12. Nb3 {[%clk 0:02:55.4]}
12... b5 {[%clk 0:02:58.8]} 13. Rxd7 {[%clk 0:02:41.3]} 13... Nxd7 {[%clk
0:02:53.3]} 14. Nd5 {[%clk 0:02:41.8]} 14... Qb8 {[%clk 0:02:36.2]} 15. Qe3
{[%clk 0:02:09.7]} 15... g5 {[%clk 0:02:31.9]} 16. Be1 {[%clk 0:01:56.3]} 16...
Bb7 {[%clk 0:02:26.4]} 17. Bd3 {[%clk 0:01:47.3]} 17... Bxd5 {[%clk 0:02:05.5]}
18. exd5 {[%clk 0:01:48.2]} 18... Bd6 {[%clk 0:02:05.6]} 19. Rf1 {[%clk
0:01:42.3]} 19... b4 {[%clk 0:01:47.3]} 20. Qf3 {[%clk 0:01:37.3]} 20... Rf8
{[%clk 0:01:46.7]} 21. Qh5 {[%clk 0:01:37.6]} 21... a5 {[%clk 0:01:42.4]} 22.
Rxf7 {[%clk 0:01:36.8]} 22... Rxf7 {[%clk 0:01:41.7]} 23. Bg6 {[%clk 0:01:37.4]}
23... Qb6 {[%clk 0:01:19.3]} 24. Bxf7+ {[%clk 0:01:34]} 24... Ke7 {[%clk
0:01:19.1]} 25. Qg6 {[%clk 0:01:18.2]} 25... Qe3+ {[%clk 0:01:03.8]} 26. Kd1
{[%clk 0:01:13.9]} 26... Nf8 {[%clk 0:01:03.6]} 27. Qg7 {[%clk 0:01:08.7]} 27...
Kd8 {[%clk 0:01:03.1]} 28. Be6 {[%clk 0:01:06.3]} 28... Ra7 {[%clk 0:00:54.9]}
29. Qf6+ {[%clk 0:00:47.3]} 29... Be7 {[%clk 0:00:54.1]} 30. Qxh6 {[%clk
0:00:47.2]} 30... a4 {[%clk 0:00:50.4]} 31. Nd2 {[%clk 0:00:47]} 31... b3 {[%clk
0:00:50]} 32. axb3 {[%clk 0:00:39]} 32... axb3 {[%clk 0:00:50.3]} 33. Nxb3
{[%clk 0:00:39.9]} 33... Ra4 {[%clk 0:00:33.7]} 34. Qh3 {[%clk 0:00:28.2]} 34...
Qxh3 {[%clk 0:00:24.5]} 35. Bxh3 {[%clk 0:00:29.1]} 35... g4 {[%clk 0:00:24.7]}
36. Bxg4 {[%clk 0:00:19.1]} 36... Rxg4 {[%clk 0:00:24.1]} 37. g3 {[%clk
0:00:20]} 37... Nd7 {[%clk 0:00:23.5]} 38. Nd2 {[%clk 0:00:16.9]} 38... Rd4
{[%clk 0:00:21.9]} 39. c4 {[%clk 0:00:15.9]} 39... Bb4 {[%clk 0:00:20]} 40. b3
{[%clk 0:00:14.6]} 40... Nc5 {[%clk 0:00:20.4]} 41. Kc2 {[%clk 0:00:15]} 41...
Nd3 {[%clk 0:00:20.9]} 0-1

[Event "Late-Titled-Tuesday-Blitz-April-23-2024"]
[Site "Chess.com"]
[Date "2024.04.23"]
[Round "7"]
[White "TheSilmarils"]
[Black "amanmuhammethommadov"]
[Result "1/2-1/2"]
[WhiteElo "2971"]
[BlackElo "2744"]
[TimeControl "180+1"]
[EndTime "15:19:02 PDT"]
[Termination "Game drawn by repetition"]

1. Nf3 {[%clk 0:03:00.9]} 1... Nf6 {[%clk 0:02:57.6]} 2. c4 {[%clk 0:03:00.3]}
2... g6 {[%clk 0:02:58]} 3. Nc3 {[%clk 0:02:59.7]} 3... Bg7 {[%clk 0:02:57.7]}
4. e4 {[%clk 0:03:00]} 4... O-O {[%clk 0:02:58.1]} 5. d4 {[%clk 0:03:00.4]} 5...
d6 {[%clk 0:02:58.7]} 6. h3 {[%clk 0:03:01.1]} 6... e5 {[%clk 0:02:59.1]} 7. d5
{[%clk 0:03:01.1]} 7... Nh5 {[%clk 0:02:58.2]} 8. Nh2 {[%clk 0:03:00.2]} 8... a5
{[%clk 0:02:51.7]} 9. Be2 {[%clk 0:02:55.4]} 9... Nf4 {[%clk 0:02:49.7]} 10. Bf3
{[%clk 0:02:55.9]} 10... f5 {[%clk 0:02:27.3]} 11. Be3 {[%clk 0:02:37.2]} 11...
Na6 {[%clk 0:02:26.2]} 12. Qd2 {[%clk 0:02:14.4]} 12... fxe4 {[%clk 0:02:23.4]}
13. Nxe4 {[%clk 0:02:12.9]} 13... Bf5 {[%clk 0:02:21.5]} 14. O-O {[%clk
0:01:49.5]} 14... b6 {[%clk 0:02:17.8]} 15. Rae1 {[%clk 0:01:33.6]} 15... Nc5
{[%clk 0:02:16.1]} 16. Nxc5 {[%clk 0:01:31.3]} 16... bxc5 {[%clk 0:02:17]} 17.
Bxf4 {[%clk 0:01:30]} 17... exf4 {[%clk 0:02:17.1]} 18. Bg4 {[%clk 0:01:30.7]}
18... a4 {[%clk 0:02:06.7]} 19. Nf3 {[%clk 0:01:15.9]} 19... Bxg4 {[%clk
0:01:59]} 20. hxg4 {[%clk 0:01:16.8]} 20... Rb8 {[%clk 0:01:58.7]} 21. Rb1
{[%clk 0:01:03.7]} 21... Qf6 {[%clk 0:01:58.6]} 22. g5 {[%clk 0:00:54.1]} 22...
Qf5 {[%clk 0:01:57.7]} 23. Rfe1 {[%clk 0:00:49.1]} 23... Rfe8 {[%clk 0:01:54.7]}
24. Rxe8+ {[%clk 0:00:46.4]} 24... Rxe8 {[%clk 0:01:55.6]} 25. Re1 {[%clk
0:00:42.7]} 25... Rb8 {[%clk 0:01:30.1]} 26. Qd1 {[%clk 0:00:43]} 26... Qd7
{[%clk 0:01:10.4]} 27. b3 {[%clk 0:00:42.6]} 27... axb3 {[%clk 0:01:10.9]} 28.
axb3 {[%clk 0:00:43.5]} 28... Re8 {[%clk 0:01:11.1]} 29. Re2 {[%clk 0:00:40]}
29... Kf7 {[%clk 0:01:05.9]} 30. Qd2 {[%clk 0:00:30.2]} 30... Rxe2 {[%clk
0:01:05.7]} 31. Qxe2 {[%clk 0:00:31.1]} 31... Qf5 {[%clk 0:01:06.1]} 32. Kh2
{[%clk 0:00:27.5]} 32... Bd4 {[%clk 0:01:02]} 33. Qa2 {[%clk 0:00:18.1]} 33...
Qe4 {[%clk 0:00:26.3]} 34. Qa7 {[%clk 0:00:16.8]} 34... Qe7 {[%clk 0:00:13.6]}
35. Nxd4 {[%clk 0:00:16]} 35... cxd4 {[%clk 0:00:14.5]} 36. Qxd4 {[%clk
0:00:16.4]} 36... Qxg5 {[%clk 0:00:15.4]} 37. Qa7 {[%clk 0:00:09.8]} 37... Qh5+
{[%clk 0:00:15.5]} 38. Kg1 {[%clk 0:00:09.7]} 38... Qd1+ {[%clk 0:00:16.4]} 39.
Kh2 {[%clk 0:00:10.3]} 39... Qh5+ {[%clk 0:00:17.3]} 40. Kg1 {[%clk 0:00:10.9]}
40... Qd1+ {[%clk 0:00:18.2]} 41. Kh2 {[%clk 0:00:11.6]} 41... Qh5+ {[%clk
0:00:19.1]} 1/2-1/2

[Event "Late-Titled-Tuesday-Blitz-April-23-2024"]
[Site "Chess.com"]
[Date "2024.04.23"]
[Round "7"]
[White "karinachess1"]
[Black "Eloist"]
[Result "0-1"]
[WhiteElo "2589"]
[BlackElo "2468"]
[TimeControl "180+1"]
[EndTime "15:19:02 PDT"]
[Termination "Eloist won by resignation"]

1. d4 {[%clk 0:03:00.9]} 1... e6 {[%clk 0:02:59.7]} 2. c4 {[%clk 0:03:01]} 2...
Nf6 {[%clk 0:02:59.7]} 3. Nc3 {[%clk 0:03:01.3]} 3... Bb4 {[%clk 0:02:59.4]} 4.
a3 {[%clk 0:03:01.9]} 4... Bxc3+ {[%clk 0:02:58.9]} 5. bxc3 {[%clk 0:03:02.8]}
5... Ne4 {[%clk 0:02:55]} 6. Qc2 {[%clk 0:02:41.5]} 6... f5 {[%clk 0:02:54.5]}
7. Nf3 {[%clk 0:02:37.5]} 7... b6 {[%clk 0:02:52.9]} 8. g3 {[%clk 0:02:37.7]}
8... Ba6 {[%clk 0:02:51.6]} 9. Bg2 {[%clk 0:02:27.3]} 9... Bxc4 {[%clk
0:02:49.3]} 10. Nd2 {[%clk 0:02:24.3]} 10... Nxd2 {[%clk 0:02:36.4]} 11. Bxd2
{[%clk 0:02:19.3]} 11... d5 {[%clk 0:02:21.8]} 12. O-O {[%clk 0:02:15.5]} 12...
O-O {[%clk 0:02:21.7]} 13. Bf4 {[%clk 0:02:11.4]} 13... c5 {[%clk 0:02:19.4]}
14. Rfd1 {[%clk 0:01:57.3]} 14... Nc6 {[%clk 0:02:17.7]} 15. dxc5 {[%clk
0:01:47.8]} 15... bxc5 {[%clk 0:02:15.4]} 16. e4 {[%clk 0:01:48.2]} 16... fxe4
{[%clk 0:01:56.9]} 17. Bxe4 {[%clk 0:01:48.1]} 17... Rxf4 {[%clk 0:01:49.8]} 18.
gxf4 {[%clk 0:01:34.1]} 18... Qh4 {[%clk 0:01:49.3]} 19. Bg2 {[%clk 0:01:26.3]}
19... Qxf4 {[%clk 0:01:44.7]} 20. Qd2 {[%clk 0:01:23.2]} 20... Qxd2 {[%clk
0:01:16.4]} 21. Rxd2 {[%clk 0:01:24.1]} 21... Rb8 {[%clk 0:01:16.3]} 22. Re1
{[%clk 0:01:12]} 22... Kf7 {[%clk 0:01:14.1]} 23. f4 {[%clk 0:01:12.3]} 23...
Ne7 {[%clk 0:01:07.2]} 24. Bh3 {[%clk 0:01:08]} 24... Nf5 {[%clk 0:00:57.1]} 25.
Bxf5 {[%clk 0:00:48.3]} 25... exf5 {[%clk 0:00:58]} 26. Re5 {[%clk 0:00:32.2]}
26... Kf6 {[%clk 0:00:57.2]} 27. Rd1 {[%clk 0:00:32.3]} 27... g5 {[%clk
0:00:42]} 28. Rde1 {[%clk 0:00:29.6]} 28... gxf4 {[%clk 0:00:41.9]} 29. Re6+
{[%clk 0:00:29.6]} 29... Kg5 {[%clk 0:00:41.9]} 30. Re7 {[%clk 0:00:27.4]} 30...
f3 {[%clk 0:00:39]} 31. Rg7+ {[%clk 0:00:06.1]} 31... Kf4 {[%clk 0:00:37.8]} 32.
Rxh7 {[%clk 0:00:05.6]} 32... Rg8+ {[%clk 0:00:34.6]} 33. Kh1 {[%clk 0:00:05]}
33... f2 {[%clk 0:00:34.3]} 34. Rc1 {[%clk 0:00:04.4]} 34... f1=Q+ {[%clk
0:00:26.2]} 35. Rxf1+ {[%clk 0:00:05.1]} 35... Bxf1 {[%clk 0:00:26.4]} 36. Rxa7
{[%clk 0:00:06]} 36... Bd3 {[%clk 0:00:24.5]} 37. h3 {[%clk 0:00:05.3]} 37...
Kg3 {[%clk 0:00:23]} 38. Kg1 {[%clk 0:00:05]} 38... f4 {[%clk 0:00:22.5]} 39.
Rd7 {[%clk 0:00:03.9]} 39... f3 {[%clk 0:00:22.1]} 40. Rxd5 {[%clk 0:00:04.6]}
40... f2+ {[%clk 0:00:22.3]} 0-1

[Event "Late-Titled-Tuesday-Blitz-April-23-2024"]
[Site "Chess.com"]
[Date "2024.04.23"]
[Round "7"]
[White "MyDream003"]
[Black "Sanyura"]
[Result "1-0"]
[WhiteElo "2828"]
[BlackElo "2638"]
[TimeControl "180+1"]
[EndTime "15:19:03 PDT"]
[Termination "MyDream003 won by checkmate"]

1. Nf3 {[%clk 0:02:59.8]} 1... Nf6 {[%clk 0:02:55.3]} 2. b3 {[%clk 0:03:00.3]}
2... g6 {[%clk 0:02:55.4]} 3. Bb2 {[%clk 0:03:00.7]} 3... Bg7 {[%clk 0:02:55.7]}
4. e3 {[%clk 0:03:01.1]} 4... O-O {[%clk 0:02:56]} 5. d4 {[%clk 0:03:01.8]} 5...
d6 {[%clk 0:02:56.6]} 6. Be2 {[%clk 0:03:01.9]} 6... Nbd7 {[%clk 0:02:57.3]} 7.
O-O {[%clk 0:03:02]} 7... e5 {[%clk 0:02:57.9]} 8. dxe5 {[%clk 0:03:02.9]} 8...
Ng4 {[%clk 0:02:58]} 9. c4 {[%clk 0:03:03.5]} 9... Ngxe5 {[%clk 0:02:58.3]} 10.
Nc3 {[%clk 0:03:03.8]} 10... a5 {[%clk 0:02:57.6]} 11. Qd2 {[%clk 0:03:04]}
11... Nxf3+ {[%clk 0:02:51.3]} 12. Bxf3 {[%clk 0:03:04.9]} 12... Nc5 {[%clk
0:02:46.8]} 13. Nd5 {[%clk 0:02:57.5]} 13... Be6 {[%clk 0:02:46.5]} 14. Bxg7
{[%clk 0:02:56]} 14... Kxg7 {[%clk 0:02:45.7]} 15. Qc3+ {[%clk 0:02:56]} 15...
f6 {[%clk 0:02:46]} 16. Nf4 {[%clk 0:02:56.3]} 16... Bf7 {[%clk 0:02:41.3]} 17.
Rfd1 {[%clk 0:02:55.9]} 17... Qe7 {[%clk 0:02:40.9]} 18. a3 {[%clk 0:02:49.5]}
18... Rfe8 {[%clk 0:02:37.5]} 19. h4 {[%clk 0:02:43.5]} 19... Qe5 {[%clk
0:02:29.4]} 20. Qc2 {[%clk 0:02:42.4]} 20... h5 {[%clk 0:01:17.1]} 21. Rac1
{[%clk 0:02:37.8]} 21... c6 {[%clk 0:00:59.1]} 22. Rd2 {[%clk 0:02:29.2]} 22...
a4 {[%clk 0:00:58.3]} 23. bxa4 {[%clk 0:02:03.8]} 23... Rxa4 {[%clk 0:00:56.7]}
24. Nd3 {[%clk 0:02:01.8]} 24... Nxd3 {[%clk 0:00:54.6]} 25. Qxd3 {[%clk
0:02:02.7]} 25... Rd8 {[%clk 0:00:49.7]} 26. Rc3 {[%clk 0:01:55.3]} 26... Qc5
{[%clk 0:00:40.9]} 27. Be2 {[%clk 0:01:51.7]} 27... Kf8 {[%clk 0:00:33.5]} 28.
Rb2 {[%clk 0:01:51.2]} 28... Rd7 {[%clk 0:00:23.7]} 29. g3 {[%clk 0:01:49.2]}
29... Qe5 {[%clk 0:00:23.5]} 30. Rb1 {[%clk 0:01:46.2]} 30... Kg7 {[%clk
0:00:18.9]} 31. Qd2 {[%clk 0:01:45.5]} 31... d5 {[%clk 0:00:18.2]} 32. Qc2
{[%clk 0:01:42]} 32... Ra5 {[%clk 0:00:05.7]} 33. Rd3 {[%clk 0:01:40.4]} 33...
Re7 {[%clk 0:00:04.7]} 34. Rdb3 {[%clk 0:01:27.2]} 34... dxc4 {[%clk 0:00:04.2]}
35. Rxb7 {[%clk 0:01:22.8]} 35... Rxa3 {[%clk 0:00:04.4]} 36. Bxc4 {[%clk
0:01:21.9]} 36... Rc3 {[%clk 0:00:04.3]} 37. Rxe7 {[%clk 0:01:06.4]} 37... Rxc2
{[%clk 0:00:04.6]} 38. Rxf7+ {[%clk 0:00:42.6]} 38... Kh6 {[%clk 0:00:04.4]} 39.
Rbb7 {[%clk 0:00:42.6]} 39... Rc1+ {[%clk 0:00:03.1]} 40. Kh2 {[%clk 0:00:42.5]}
40... g5 {[%clk 0:00:03.4]} 41. Bd3 {[%clk 0:00:42.8]} 41... gxh4 {[%clk
0:00:02]} 42. Rh7+ {[%clk 0:00:42]} 42... Kg5 {[%clk 0:00:02.4]} 43. Rbg7#
{[%clk 0:00:42.9]} 1-0

[Event "Late-Titled-Tuesday-Blitz-April-23-2024"]
[Site "Chess.com"]
[Date "2024.04.23"]
[Round "7"]
[White "TheBigBoss04"]
[Black "Orest_Vovk"]
[Result "1-0"]
[WhiteElo "2802"]
[BlackElo "2573"]
[TimeControl "180+1"]
[EndTime "15:19:07 PDT"]
[Termination "TheBigBoss04 won on time"]

1. e4 {[%clk 0:03:00.9]} 1... g5 {[%clk 0:02:53.5]} 2. d4 {[%clk 0:02:52.1]}
2... g4 {[%clk 0:02:53.1]} 3. Qxg4 {[%clk 0:02:42.7]} 3... d5 {[%clk 0:02:53.3]}
4. Qh4 {[%clk 0:02:42.4]} 4... dxe4 {[%clk 0:02:53.5]} 5. Qxe4 {[%clk
0:02:43.1]} 5... Nf6 {[%clk 0:02:53.8]} 6. Qd3 {[%clk 0:02:43.3]} 6... Nc6
{[%clk 0:02:53.6]} 7. c3 {[%clk 0:02:42.1]} 7... Qd5 {[%clk 0:02:52.5]} 8. Nf3
{[%clk 0:02:35.7]} 8... Bg4 {[%clk 0:02:52.1]} 9. h3 {[%clk 0:02:25.7]} 9...
Bxf3 {[%clk 0:02:50.5]} 10. Qxf3 {[%clk 0:02:25.5]} 10... Qxf3 {[%clk
0:02:50.5]} 11. gxf3 {[%clk 0:02:26.3]} 11... e5 {[%clk 0:02:45.8]} 12. Bg5
{[%clk 0:02:06]} 12... Be7 {[%clk 0:02:39.4]} 13. dxe5 {[%clk 0:01:55.4]} 13...
Nxe5 {[%clk 0:02:39.1]} 14. Nd2 {[%clk 0:01:54.2]} 14... O-O-O {[%clk
0:02:34.9]} 15. Be2 {[%clk 0:01:48.3]} 15... Nd5 {[%clk 0:02:13.3]} 16. Bxe7
{[%clk 0:01:45]} 16... Nxe7 {[%clk 0:02:14.2]} 17. O-O-O {[%clk 0:01:41.4]}
17... N7g6 {[%clk 0:02:07.7]} 18. Nc4 {[%clk 0:01:39.2]} 18... Nxc4 {[%clk
0:01:57.7]} 19. Bxc4 {[%clk 0:01:38.2]} 19... Ne5 {[%clk 0:01:57.6]} 20. Bd5
{[%clk 0:01:34.5]} 20... c6 {[%clk 0:01:44.6]} 21. Be4 {[%clk 0:01:32.7]} 21...
Rdf8 {[%clk 0:01:24.9]} 22. f4 {[%clk 0:01:25.7]} 22... Ng6 {[%clk 0:00:51.6]}
23. f5 {[%clk 0:01:23.4]} 23... Nf4 {[%clk 0:00:44.2]} 24. Kc2 {[%clk
0:01:13.5]} 24... Re8 {[%clk 0:00:34.9]} 25. f3 {[%clk 0:01:12.3]} 25... f6
{[%clk 0:00:28]} 26. Rdg1 {[%clk 0:01:08.3]} 26... Rhg8 {[%clk 0:00:26.8]} 27.
Rg4 {[%clk 0:01:08]} 27... Nd5 {[%clk 0:00:18.8]} 28. Kd2 {[%clk 0:01:05.1]}
28... h5 {[%clk 0:00:15.1]} 29. Rg6 {[%clk 0:01:02.6]} 29... Nf4 {[%clk
0:00:15]} 30. Rxg8 {[%clk 0:01:01.2]} 30... Rxg8 {[%clk 0:00:14.3]} 31. Ke3
{[%clk 0:01:02.1]} 31... Ng2+ {[%clk 0:00:08.5]} 32. Kf2 {[%clk 0:01:00.6]}
32... Nf4 {[%clk 0:00:07.4]} 33. h4 {[%clk 0:00:56.2]} 33... Rg2+ {[%clk
0:00:06.1]} 34. Ke3 {[%clk 0:00:56.5]} 34... Nd5+ {[%clk 0:00:05.8]} 35. Bxd5
{[%clk 0:00:56.4]} 35... cxd5 {[%clk 0:00:06.7]} 36. Rb1 {[%clk 0:00:41.3]}
36... Kc7 {[%clk 0:00:04.9]} 37. a4 {[%clk 0:00:38.6]} 37... Kc6 {[%clk
0:00:04.3]} 38. b4 {[%clk 0:00:36.2]} 38... Rh2 {[%clk 0:00:04.4]} 39. Rg1
{[%clk 0:00:35.5]} 39... Kd6 {[%clk 0:00:04.5]} 40. Rg7 {[%clk 0:00:33.2]} 40...
Rxh4 {[%clk 0:00:04.2]} 41. Rxb7 {[%clk 0:00:33.4]} 41... Rh1 {[%clk 0:00:03.4]}
42. Rxa7 {[%clk 0:00:31]} 42... h4 {[%clk 0:00:03.8]} 43. Rh7 {[%clk 0:00:28.2]}
43... h3 {[%clk 0:00:03]} 44. Kf2 {[%clk 0:00:27.8]} 1-0

[Event "Late-Titled-Tuesday-Blitz-April-23-2024"]
[Site "Chess.com"]
[Date "2024.04.23"]
[Round "7"]
[White "MaxLeto"]
[Black "dolynachess"]
[Result "0-1"]
[WhiteElo "2422"]
[BlackElo "2543"]
[TimeControl "180+1"]
[EndTime "15:19:07 PDT"]
[Termination "dolynachess won on time"]

1. h3 {[%clk 0:03:00.9]} 1... c5 {[%clk 0:02:56.1]} 2. g3 {[%clk 0:03:01.8]}
2... g6 {[%clk 0:02:55.5]} 3. f3 {[%clk 0:03:02.7]} 3... Bg7 {[%clk 0:02:55.9]}
4. e3 {[%clk 0:03:03.6]} 4... Nc6 {[%clk 0:02:55.7]} 5. d3 {[%clk 0:03:04.5]}
5... Nf6 {[%clk 0:02:55.6]} 6. c3 {[%clk 0:03:05.4]} 6... Rb8 {[%clk 0:02:55.4]}
7. b3 {[%clk 0:03:05.9]} 7... b5 {[%clk 0:02:55.7]} 8. a3 {[%clk 0:03:06.5]}
8... a5 {[%clk 0:02:55.5]} 9. Bb2 {[%clk 0:03:03.8]} 9... O-O {[%clk 0:02:53.7]}
10. Bg2 {[%clk 0:03:02.7]} 10... Qc7 {[%clk 0:02:48.2]} 11. Ne2 {[%clk
0:03:02.7]} 11... d6 {[%clk 0:02:41.8]} 12. O-O {[%clk 0:02:41.1]} 12... Bb7
{[%clk 0:02:30.6]} 13. e4 {[%clk 0:02:30.9]} 13... Rfc8 {[%clk 0:02:29.6]} 14.
c4 {[%clk 0:02:21.8]} 14... bxc4 {[%clk 0:02:14.5]} 15. bxc4 {[%clk 0:02:22.7]}
15... Ba6 {[%clk 0:01:54.4]} 16. Bc3 {[%clk 0:02:12.5]} 16... Qa7 {[%clk
0:01:52.9]} 17. Nd2 {[%clk 0:02:07]} 17... Nd4 {[%clk 0:01:43.8]} 18. Bxa5
{[%clk 0:02:00.9]} 18... Nd7 {[%clk 0:01:21.3]} 19. Ra2 {[%clk 0:01:43.9]} 19...
Bb7 {[%clk 0:01:07]} 20. Nb3 {[%clk 0:00:42.6]} 20... Nxb3 {[%clk 0:01:00.9]}
21. Bc3 {[%clk 0:00:38.4]} 21... Nd4 {[%clk 0:00:49.4]} 22. Nxd4 {[%clk
0:00:33.9]} 22... Bxd4+ {[%clk 0:00:44.5]} 23. Bxd4 {[%clk 0:00:34.3]} 23...
cxd4 {[%clk 0:00:45.4]} 24. a4 {[%clk 0:00:31.4]} 24... Ba6 {[%clk 0:00:39.7]}
25. f4 {[%clk 0:00:27.9]} 25... Rb4 {[%clk 0:00:38.3]} 26. g4 {[%clk 0:00:21.9]}
26... Rcb8 {[%clk 0:00:36]} 27. g5 {[%clk 0:00:18.1]} 27... Rb2 {[%clk
0:00:28.3]} 28. Ra1 {[%clk 0:00:18.3]} 28... Qc5 {[%clk 0:00:21.9]} 29. h4
{[%clk 0:00:16.7]} 29... Nf8 {[%clk 0:00:13.3]} 30. h5 {[%clk 0:00:15.2]} 30...
Ne6 {[%clk 0:00:13.2]} 31. h6 {[%clk 0:00:14.8]} 31... R8b3 {[%clk 0:00:10.7]}
32. Rf3 {[%clk 0:00:10]} 32... Qb4 {[%clk 0:00:09.9]} 33. Bf1 {[%clk 0:00:09.2]}
33... Qd2 {[%clk 0:00:09.2]} 34. Qxd2 {[%clk 0:00:04.5]} 34... Rxd2 {[%clk
0:00:10.1]} 35. a5 {[%clk 0:00:02.3]} 35... Rbb2 {[%clk 0:00:09.9]} 0-1

[Event "Late-Titled-Tuesday-Blitz-April-23-2024"]
[Site "Chess.com"]
[Date "2024.04.23"]
[Round "7"]
[White "Valiyev_Shahin"]
[Black "ArtemDyachuk"]
[Result "1-0"]
[WhiteElo "2559"]
[BlackElo "2718"]
[TimeControl "180+1"]
[EndTime "15:19:08 PDT"]
[Termination "Valiyev_Shahin won on time"]

1. e4 {[%clk 0:03:00.9]} 1... e5 {[%clk 0:02:58.5]} 2. Nf3 {[%clk 0:03:01.2]}
2... Nc6 {[%clk 0:02:59]} 3. Bb5 {[%clk 0:03:01.8]} 3... a6 {[%clk 0:02:59.4]}
4. Ba4 {[%clk 0:03:02]} 4... Bc5 {[%clk 0:03:00.1]} 5. O-O {[%clk 0:03:01.2]}
5... Nge7 {[%clk 0:03:00.6]} 6. Nxe5 {[%clk 0:02:59.6]} 6... Nxe5 {[%clk
0:02:53.3]} 7. d4 {[%clk 0:02:59.8]} 7... b5 {[%clk 0:02:53]} 8. Bb3 {[%clk
0:02:58.4]} 8... Bxd4 {[%clk 0:02:51.5]} 9. Qxd4 {[%clk 0:02:59.3]} 9... d6
{[%clk 0:02:52.1]} 10. c3 {[%clk 0:02:41.4]} 10... Bb7 {[%clk 0:02:50.6]} 11.
Bf4 {[%clk 0:02:35.4]} 11... N7g6 {[%clk 0:02:49.5]} 12. Bg3 {[%clk 0:02:32.3]}
12... h5 {[%clk 0:02:27.7]} 13. f4 {[%clk 0:02:07.9]} 13... Ng4 {[%clk
0:02:16.5]} 14. Qxg7 {[%clk 0:02:00.9]} 14... Qf6 {[%clk 0:01:36.4]} 15. Qxf6
{[%clk 0:01:48.2]} 15... Nxf6 {[%clk 0:01:37.3]} 16. Nd2 {[%clk 0:01:47.9]}
16... h4 {[%clk 0:01:14.9]} 17. Bf2 {[%clk 0:01:47.3]} 17... O-O {[%clk
0:00:26.4]} 18. f5 {[%clk 0:01:42]} 18... Ne5 {[%clk 0:00:22.8]} 19. Bxh4 {[%clk
0:01:41.9]} 19... Nxe4 {[%clk 0:00:23.3]} 20. Nxe4 {[%clk 0:01:39.7]} 20... Bxe4
{[%clk 0:00:24.2]} 21. Rae1 {[%clk 0:01:36.4]} 21... Bd3 {[%clk 0:00:15.1]} 22.
Rxe5 {[%clk 0:01:23.7]} 22... dxe5 {[%clk 0:00:07.3]} 23. Rf3 {[%clk 0:01:24.2]}
23... Be4 {[%clk 0:00:06.6]} 24. Rg3+ {[%clk 0:01:14.4]} 24... Kh7 {[%clk
0:00:06.2]} 25. Bd5 {[%clk 0:00:50.7]} 25... Bxf5 {[%clk 0:00:02.3]} 26. Bf6
{[%clk 0:00:36.4]} 26... Rad8 {[%clk 0:00:01.3]} 27. Bxd8 {[%clk 0:00:21]} 27...
Rxd8 {[%clk 0:00:02.2]} 28. Bxf7 {[%clk 0:00:21.9]} 28... Rd1+ {[%clk
0:00:01.6]} 29. Kf2 {[%clk 0:00:21.5]} 29... Rd2+ {[%clk 0:00:02.5]} 30. Ke3
{[%clk 0:00:21]} 30... Rxb2 {[%clk 0:00:03.4]} 31. Rg5 {[%clk 0:00:20.5]} 31...
Bb1 {[%clk 0:00:02.6]} 32. Rxe5 {[%clk 0:00:17.8]} 32... Rxg2 {[%clk 0:00:03]}
33. h4 {[%clk 0:00:17.6]} 33... Bxa2 {[%clk 0:00:02.4]} 34. Bxa2 {[%clk
0:00:16.3]} 34... Rxa2 {[%clk 0:00:02.6]} 35. Re7+ {[%clk 0:00:17.1]} 35... Kg6
{[%clk 0:00:02.3]} 36. Rxc7 {[%clk 0:00:18]} 36... Ra4 {[%clk 0:00:02.1]} 37.
Kd3 {[%clk 0:00:17]} 1-0